[Event "IV Torneo de Semana Santa"]
[Site "Los Llanos de Aridane"]
[Date "2019.04.15"]
[Round "4.7"]
[White "Fernandez Gonzalez, Sergio"]
[Black "Alonso Perez, Alfredo"]
[Result "1-0"]
[ECO "A15"]
[WhiteElo "2089"]
[BlackElo "1735"]
[Annotator "NA RC"]
[PlyCount "67"]
[EventDate "2019.04.13"]
[EventType "swiss"]
[EventCountry "ESP"]
[SourceTitle "playchess.com"]
[Source "ChessBase"]
[SourceQuality "1"]
[TimeControl "5400+30"]

1. c4 {[%emt 0:00:00]} Nf6 {[%emt 0:00:00]} 2. g3 {[%emt 0:00:02]} c6 {[%emt 0:01:23]} 3. Bg2 {[%emt 0:00:09]} g6 {[%emt 0:02:28]} 4. e4 {[%emt 0:01:54]} e5 {[%emt 0:02:33]} 5. d4 {[%emt 0:04:53]} d6 {[%emt 0:04:48]} 6. dxe5 {[%emt 0:01:25]} dxe5 {[%emt 0:00:09]} 7. Qxd8+ {[%emt 0:00:20]} Kxd8 {[%emt 0:00:05]} 8. Bg5 {[%emt 0:00:23]} Bg7 {[%emt 0:04:39]} 9. Nc3 {[%emt 0:01:14]} h6 {[%emt 0:02:58]} 10. O-O-O+ {[%emt 0:00:31]} Kc7 {[%emt 0:02:50]} 11. Be3 {[%emt 0:01:23]} Be6 {[%emt 0:04:52]} 12. b3 {[%emt 0:01:31]} Na6 {[%emt 0:03:30]} 13. h3 {[%emt 0:02:05]} Rad8 {[%emt 0:06:38]} 14. Nge2 {[%emt 0:06:20]} Nd7 {[%emt 0:09:27]} 15. f4 {[%emt 0:01:57]} f6 {[%emt 0:00:18]} 16. g4 {[%emt 0:02:08]} b6 {[%emt 0:07:51]} 17. f5 {[%emt 0:04:23]} gxf5 {[%emt 0:03:58]} 18. exf5 {[%emt 0:04:07]} Bf7 {[%emt 0:00:17]} 19. Ne4 {[%emt 0:00:50]} Bf8 {[%emt 0:08:37]} 20. N2g3 {[%emt 0:00:58]} Be7 {[%emt 0:05:05]} 21. h4 {[%emt 0:02:50]} Rdg8 {[%emt 0:04:01]} 22. Bf3 {[%emt 0:00:36]} Nab8 {[%emt 0:06:46]} 23. Rh2 {[%emt 0:00:38]} c5 {[%emt 0:12:18]} 24. Rhd2 {[%emt 0:00:57]} Be8 {[%emt 0:00:13]} 25. Nd6 {[%emt 0:00:33]} Bxd6 {[%emt 0:02:41]} 26. Rxd6 {[%emt 0:00:08]} Na6 {[%emt 0:02:34]} 27. Ne4 {[%emt 0:00:38]} Rf8 {[%emt 0:01:04]} 28. Nc3 {[%emt 0:00:56]} Rh7 {[%emt 0:01:09]} 29. Nb5+ {[%emt 0:01:37]} Kb8 {[%emt 0:00:03]} 30. Bc6 {[%emt 0:00:21]} Rff7 {[%emt 0:00:28]} 31. Re6 {[%emt 0:00:03]} Nc7 {[%emt 0:01:01]} 32. Nd6 {[%emt 0:03:21]} Nxe6 {[%emt 0:00:38]} 33. fxe6 {[%emt 0:00:05]} Re7 {[%emt 0:00:26]} 34. Nxe8 {[%emt 0:00:32]} 1-0

[Event "IV Torneo de Semana Santa"]
[Site "Los Llanos de Aridane"]
[Date "2019.04.16"]
[Round "5.1"]
[White "Rodriguez Ferraz, Borja"]
[Black "Hernandez Leon, Alberto"]
[Result "1/2-1/2"]
[ECO "A38"]
[WhiteElo "2212"]
[BlackElo "2280"]
[Annotator "NA"]
[PlyCount "55"]
[EventDate "2019.04.13"]
[EventType "swiss"]
[EventCountry "ESP"]
[SourceTitle "playchess.com"]
[Source "ChessBase"]
[SourceQuality "1"]
[TimeControl "5400+30"]

1. c4 {[%emt 0:00:00]} g6 {[%emt 0:00:40]} 2. Nf3 {[%emt 0:00:00]} Bg7 {[%emt 0:00:14]} 3. g3 {[%emt 0:00:41]} Nf6 {[%emt 0:00:12]} 4. Bg2 {[%emt 0:00:04]} c5 {[%emt 0:00:22]} 5. O-O {[%emt 0:00:25]} O-O {[%emt 0:00:07]} 6. Nc3 {[%emt 0:04:49]} Nc6 {[%emt 0:00:16]} 7. d3 {[%emt 0:03:20]} d6 {[%emt 0:03:55]} 8. a3 {[%emt 0:00:36]} a6 {[%emt 0:06:11]} 9. Rb1 {[%emt 0:01:02]} Rb8 {[%emt 0:07:48]} 10. b4 {[%emt 0:09:09]} Nd7 {[%emt 0:04:07]} 11. b5 {[%emt 0:04:45]} Nd4 {[%emt 0:07:59]} 12. Nxd4 {[%emt 0:01:35]} cxd4 {[%emt 0:00:37]} 13. Na4 {[%emt 0:06:27]} axb5 {[%emt 0:06:01]} 14. Rxb5 {[%emt 0:01:18]} b6 {[%emt 0:01:15]} 15. Bg5 {[%emt 0:03:55]} Ba6 {[%emt 0:06:41]} 16. Rb4 {[%emt 0:01:09]} b5 {[%emt 0:01:36]} 17. cxb5 {[%emt 0:00:53]} Rxb5 {[%emt 0:00:32]} 18. Rxb5 {[%emt 0:00:36]} Bxb5 {[%emt 0:00:05]} 19. Nb2 {[%emt 0:00:11]} Nc5 {[%emt 0:02:58]} 20. a4 {[%emt 0:00:59]} Ba6 {[%emt 0:00:17]} 21. Qc2 {[%emt 0:00:54]} Qd7 {[%emt 0:00:38]} 22. Ra1 {[%emt 0:05:39]} Rc8 {[%emt 0:03:57]} 23. Qd1 {[%emt 0:03:37]} d5 {[%emt 0:04:45]} 24. a5 {[%emt 0:00:53]} Bb5 {[%emt 0:00:15]} 25. Bd2 {[%emt 0:01:19]} e5 {[%emt 0:00:58]} 26. Bb4 {[%emt 0:01:29]} Na6 {[%emt 0:07:47]} 27. Bd2 {[%emt 0:01:03]} Nc5 {[%emt 0:07:38]} 28. Bb4 {[%emt 0:00:04]} 1/2-1/2

[Event "IV Torneo de Semana Santa"]
[Site "Los Llanos de Aridane"]
[Date "2019.04.16"]
[Round "5.3"]
[White "Alonso Alvarez, Aitor"]
[Black "Hernandez Leon, Sergio"]
[Result "1-0"]
[ECO "A80"]
[WhiteElo "2284"]
[BlackElo "2157"]
[Annotator "NA"]
[PlyCount "95"]
[EventDate "2019.04.13"]
[EventType "swiss"]
[EventCountry "ESP"]
[SourceTitle "playchess.com"]
[Source "ChessBase"]
[SourceQuality "1"]
[TimeControl "5400+30"]

1. d4 {[%emt 0:00:00]} f5 {[%emt 0:00:00]} 2. Nc3 {[%emt 0:00:05]} Nf6 {[%emt 0:00:00]} 3. Bg5 {[%emt 0:00:22]} d5 {[%emt 0:00:33]} 4. Bxf6 {[%emt 0:00:41]} exf6 {[%emt 0:00:02]} 5. e3 {[%emt 0:00:10]} Be6 {[%emt 0:00:15]} 6. Bd3 {[%emt 0:00:28]} Nc6 {[%emt 0:00:56]} 7. Qf3 {[%emt 0:00:23]} Qd7 {[%emt 0:00:14]} 8. Nge2 {[%emt 0:01:09]} Nb4 {[%emt 0:06:55]} 9. Nf4 {[%emt 0:02:39]} Nxd3+ {[%emt 0:05:49]} 10. cxd3 {[%emt 0:05:02]} O-O-O {[%emt 0:03:53]} 11. Nxe6 {[%emt 0:00:20]} Qxe6 {[%emt 0:00:15]} 12. O-O-O {[%emt 0:01:20]} g6 {[%emt 0:02:57]} 13. Kb1 {[%emt 0:00:15]} Bb4 {[%emt 0:10:34]} 14. Ne2 {[%emt 0:04:37]} Bd6 {[%emt 0:03:02]} 15. h4 {[%emt 0:02:51]} Rhg8 {[%emt 0:07:00]} 16. Nf4 {[%emt 0:14:50]} Bxf4 {[%emt 0:02:28]} 17. Qxf4 {[%emt 0:00:02]} g5 {[%emt 0:05:59]} 18. hxg5 {[%emt 0:08:18]} fxg5 {[%emt 0:01:00]} 19. Qe5 {[%emt 0:00:07]} Qf7 {[%emt 0:00:38]} 20. Rh6 {[%emt 0:01:09]} Rdf8 {[%emt 0:07:05]} 21. Re6 {[%emt 0:13:15]} Rg7 {[%emt 0:09:34]} 22. Qxd5 {[%emt 0:01:33]} Rg6 {[%emt 0:00:11]} 23. Re5 {[%emt 0:00:40]} Qxd5 {[%emt 0:00:06]} 24. Rxd5 {[%emt 0:00:02]} f4 {[%emt 0:00:17]} 25. e4 {[%emt 0:03:12]} h5 {[%emt 0:05:47]} 26. Rh1 {[%emt 0:00:30]} h4 {[%emt 0:00:20]} 27. f3 {[%emt 0:00:17]} c6 {[%emt 0:02:55]} 28. Rc5 {[%emt 0:00:02]} b6 {[%emt 0:15:23]} 29. Rc2 {[%emt 0:15:16]} Kb7 {[%emt 0:00:00]} 30. Rhc1 {[%emt 0:04:54]} Rf7 {[%emt 0:00:00]} 31. b4 {[%emt 0:02:17]} a6 {[%emt 0:00:00]} 32. a4 {[%emt 0:00:09]} Rd7 {[%emt 0:00:00]} 33. b5 {[%emt 0:01:04]} Rxd4 {[%emt 0:00:00]} 34. Rxc6 {[%emt 0:14:44]} Rxc6 {[%emt 0:00:00]} 35. Rxc6 {[%emt 0:04:01]} Rxd3 {[%emt 0:00:00]} 36. Rg6 axb5 {[%emt 0:10:54]} 37. axb5 {[%emt 0:00:36]} Rb3+ {[%emt 0:00:30]} 38. Kc2 {[%emt 0:00:30]} Rxb5 {[%emt 0:00:14]} 39. Kc3 {[%emt 0:00:09]} Kc7 {[%emt 0:00:13]} 40. Kd4 {[%emt 0:00:27]} Kd7 {[%emt 0:03:25]} 41. e5 {[%emt 0:00:00]} Rb4+ {[%emt 0:00:34]} 42. Kd5 {[%emt 0:00:04]} Ke7 {[%emt 0:00:30]} 43. Rg7+ {[%emt 0:00:43]} Kf8 {[%emt 0:00:17]} 44. Rxg5 {[%emt 0:00:02]} Kf7 {[%emt 0:00:15]} 45. Rh5 {[%emt 0:00:37]} Rb2 {[%emt 0:00:57]} 46. Rxh4 {[%emt 0:01:32]} Rxg2 {[%emt 0:00:25]} 47. Rxf4+ {[%emt 0:00:01]} Ke7 {[%emt 0:00:12]} 48. Rb4 {[%emt 0:00:33]} 1-0

[Event "IV Torneo de Semana Santa"]
[Site "Los Llanos de Aridane"]
[Date "2019.04.16"]
[Round "5.5"]
[White "Bazan Solera, Manuel"]
[Black "Navio Lopez, Manuel"]
[Result "1/2-1/2"]
[ECO "E62"]
[WhiteElo "1923"]
[BlackElo "1877"]
[Annotator "NA"]
[PlyCount "120"]
[EventDate "2019.04.13"]
[EventType "swiss"]
[EventCountry "ESP"]
[SourceTitle "playchess.com"]
[Source "ChessBase"]
[SourceQuality "1"]
[TimeControl "5400+30"]

1. Nf3 {[%emt 0:00:00]} Nf6 {[%emt 0:12:00]} 2. g3 {[%emt 0:00:00]} g6 {[%emt 0:00:07]} 3. Bg2 {[%emt 0:00:00]} Bg7 {[%emt 0:00:05]} 4. O-O {[%emt 0:00:17]} O-O {[%emt 0:00:04]} 5. c4 {[%emt 0:00:30]} d6 {[%emt 0:00:05]} 6. d4 {[%emt 0:00:29]} c6 {[%emt 0:00:05]} 7. Nc3 {[%emt 0:00:08]} Qa5 {[%emt 0:00:22]} 8. d5 {[%emt 0:10:12]} cxd5 {[%emt 0:05:53]} 9. cxd5 {[%emt 0:04:55]} Nbd7 {[%emt 0:00:18]} 10. Rb1 {[%emt 0:02:07]} Qc7 {[%emt 0:08:12]} 11. Bd2 {[%emt 0:06:23]} Nb6 {[%emt 0:02:25]} 12. Rc1 {[%emt 0:00:53]} Qc4 {[%emt 0:02:31]} 13. b3 {[%emt 0:01:37]} Qa6 {[%emt 0:01:23]} 14. e4 {[%emt 0:04:38]} Bg4 {[%emt 0:00:15]} 15. Re1 {[%emt 0:01:56]} Nbd7 {[%emt 0:03:19]} 16. h3 {[%emt 0:01:39]} Bxf3 {[%emt 0:00:04]} 17. Bxf3 {[%emt 0:01:06]} Rac8 {[%emt 0:09:24]} 18. Be2 {[%emt 0:24:03]} Qa3 {[%emt 0:01:10]} 19. Rc2 {[%emt 0:01:33]} Qb4 {[%emt 0:01:32]} 20. Bc4 {[%emt 0:01:48]} Qb6 {[%emt 0:01:21]} 21. Be3 {[%emt 0:01:58]} Qa5 {[%emt 0:01:18]} 22. Bd2 {[%emt 0:01:19]} a6 {[%emt 0:05:06]} 23. Qc1 {[%emt 0:05:27]} Ne5 {[%emt 0:00:55]} 24. Be2 {[%emt 0:01:17]} Qb6 {[%emt 0:06:11]} 25. Be3 {[%emt 0:01:00]} Qb4 {[%emt 0:00:21]} 26. f3 {[%emt 0:01:11]} Nh5 {[%emt 0:01:45]} 27. Kg2 {[%emt 0:11:55]} Nxf3 {[%emt 0:00:20]} 28. Bxf3 {[%emt 0:00:18]} Rxc3 {[%emt 0:00:02]} 29. Bd2 {[%emt 0:05:25]} Rxc2 {[%emt 0:00:01]} 30. Qxc2 {[%emt 0:00:27]} Qd4 {[%emt 0:01:36]} 31. Bxh5 {[%emt 0:01:05]} gxh5 {[%emt 0:00:02]} 32. Be3 {[%emt 0:00:10]} Qb4 {[%emt 0:05:20]} 33. Bd2 {[%emt 0:00:20]} Qb5 {[%emt 0:00:33]} 34. a4 {[%emt 0:00:33]} Qd7 {[%emt 0:00:59]} 35. Rc1 {[%emt 0:00:09]} f5 {[%emt 0:03:51]} 36. Qc7 {[%emt 0:01:58]} Qe8 {[%emt 0:05:46]} 37. exf5 {[%emt 0:01:04]} Qf7 {[%emt 0:00:06]} 38. Qc4 {[%emt 0:01:52]} Qxf5 {[%emt 0:00:08]} 39. Rf1 {[%emt 0:00:19]} Qxf1+ {[%emt 0:00:30]} 40. Qxf1 {[%emt 0:00:04]} Rxf1 {[%emt 0:00:16]} 41. Kxf1 {[%emt 0:00:00]} Kf7 {[%emt 0:00:22]} 42. Ke2 {[%emt 0:00:08]} Kg6 {[%emt 0:00:15]} 43. Kf3 {[%emt 0:02:08]} Kf5 {[%emt 0:00:09]} 44. g4+ {[%emt 0:00:27]} hxg4+ {[%emt 0:00:01]} 45. hxg4+ {[%emt 0:00:01]} Ke5 {[%emt 0:00:11]} 46. Bc3+ {[%emt 0:00:02]} Kxd5 {[%emt 0:00:16]} 47. Bxg7 {[%emt 0:00:02]} e5 {[%emt 0:00:33]} 48. Ke3 {[%emt 0:00:47]} Ke6 {[%emt 0:00:12]} 49. Kd3 {[%emt 0:00:47]} b5 {[%emt 0:00:37]} 50. axb5 {[%emt 0:00:17]} axb5 {[%emt 0:00:02]} 51. Bh6 {[%emt 0:00:12]} Kd5 {[%emt 0:00:43]} 52. Bd2 {[%emt 0:00:27]} Ke6 {[%emt 0:00:51]} 53. Kc3 {[%emt 0:00:32]} Kd5 {[%emt 0:00:10]} 54. Kb4 {[%emt 0:00:51]} Kc6 {[%emt 0:00:01]} 55. Bc3 {[%emt 0:01:27]} Kb6 {[%emt 0:00:14]} 56. Bb2 {[%emt 0:00:29]} Kc6 {[%emt 0:00:50]} 57. g5 {[%emt 0:00:46]} Kb6 {[%emt 0:00:20]} 58. Bc3 {[%emt 0:00:20]} Kc6 {[%emt 0:00:08]} 59. Bb2 {[%emt 0:00:32]} Kb6 {[%emt 0:00:10]} 60. Bc3 {[%emt 0:01:20]} Kc6 {[%emt 0:00:03]} 1/2-1/2

[Event "IV Torneo de Semana Santa"]
[Site "Los Llanos de Aridane"]
[Date "2019.04.16"]
[Round "5.6"]
[White "Natalicchio Escalante, Nicolas"]
[Black "Cruz Diaz, Felipe"]
[Result "1-0"]
[ECO "C01"]
[WhiteElo "2189"]
[BlackElo "1655"]
[Annotator "NA"]
[PlyCount "71"]
[EventDate "2019.04.13"]
[EventType "swiss"]
[EventCountry "ESP"]
[SourceTitle "playchess.com"]
[Source "ChessBase"]
[SourceQuality "1"]
[TimeControl "5400+30"]

1. e4 {[%emt 0:04:40]} e6 {[%emt 0:00:00]} 2. d4 {[%emt 0:00:10]} d5 {[%emt 0:00:00]} 3. Nc3 {[%emt 0:00:05]} Bb4 {[%emt 0:00:15]} 4. exd5 {[%emt 0:00:48]} exd5 {[%emt 0:00:12]} 5. Bd3 {[%emt 0:00:37]} Ne7 {[%emt 0:00:38]} 6. Qf3 {[%emt 0:00:57]} Nbc6 {[%emt 0:01:32]} 7. Nge2 {[%emt 0:00:13]} Be6 {[%emt 0:01:34]} 8. Qg3 {[%emt 0:05:34]} g6 {[%emt 0:03:26]} 9. Bg5 {[%emt 0:03:42]} Qd7 {[%emt 0:03:37]} 10. Bf6 {[%emt 0:01:17]} Rg8 {[%emt 0:00:51]} 11. a3 {[%emt 0:00:39]} Bd6 {[%emt 0:03:08]} 12. Qh4 {[%emt 0:01:16]} h5 {[%emt 0:01:38]} 13. Nb5 {[%emt 0:00:57]} O-O-O {[%emt 0:01:19]} 14. O-O-O {[%emt 0:04:50]} Rde8 {[%emt 0:02:49]} 15. Nxd6+ {[%emt 0:01:04]} Qxd6 {[%emt 0:00:42]} 16. Rhe1 {[%emt 0:06:17]} Nf5 {[%emt 0:03:59]} 17. Qg5 {[%emt 0:05:38]} Qxh2 {[%emt 0:06:37]} 18. Nf4 {[%emt 0:00:25]} Qh4 {[%emt 0:02:07]} 19. Bxf5 {[%emt 0:06:55]} Qxg5 {[%emt 0:04:02]} 20. Bxe6+ {[%emt 0:00:16]} fxe6 {[%emt 0:01:26]} 21. Bxg5 {[%emt 0:00:08]} Kd7 {[%emt 0:00:32]} 22. Nd3 {[%emt 0:01:03]} b6 {[%emt 0:04:37]} 23. c3 {[%emt 0:03:01]} Rgf8 {[%emt 0:01:30]} 24. Re2 {[%emt 0:00:59]} Rf5 {[%emt 0:01:55]} 25. f4 {[%emt 0:01:13]} Kd6 {[%emt 0:03:55]} 26. Rde1 {[%emt 0:00:33]} Rf7 {[%emt 0:06:37]} 27. Ne5 {[%emt 0:00:35]} Nxe5 {[%emt 0:01:11]} 28. fxe5+ {[%emt 0:00:29]} Kd7 {[%emt 0:01:04]} 29. Bf6 {[%emt 0:00:05]} Rh7 {[%emt 0:02:14]} 30. Re3 {[%emt 0:00:40]} Rg8 {[%emt 0:01:19]} 31. Rh1 {[%emt 0:02:31]} g5 {[%emt 0:05:00]} 32. Reh3 {[%emt 0:00:30]} h4 {[%emt 0:00:55]} 33. g3 {[%emt 0:00:13]} g4 {[%emt 0:01:04]} 34. Rxh4 {[%emt 0:00:07]} Rxh4 {[%emt 0:00:09]} 35. Rxh4 {[%emt 0:00:06]} a5 {[%emt 0:01:41]} 36. Rh7+ {[%emt 0:00:06]} 1-0

[Event "IV Torneo de Semana Santa"]
[Site "Los Llanos de Aridane"]
[Date "2019.04.16"]
[Round "5.8"]
[White "Rodriguez Centenera, Sara"]
[Black "Leon Varela, Luis"]
[Result "0-1"]
[ECO "B25"]
[WhiteElo "1704"]
[BlackElo "2154"]
[Annotator "NA"]
[PlyCount "86"]
[EventDate "2019.04.13"]
[EventType "swiss"]
[EventCountry "ESP"]
[SourceTitle "playchess.com"]
[Source "ChessBase"]
[SourceQuality "1"]
[TimeControl "5400+30"]

1. e4 {[%emt 0:02:05]} c5 {[%emt 0:00:00]} 2. Nc3 {[%emt 0:00:39]} Nc6 {[%emt 0:00:04]} 3. g3 {[%emt 0:00:10]} g6 {[%emt 0:00:14]} 4. Bg2 {[%emt 0:00:04]} Bg7 {[%emt 0:00:06]} 5. f4 {[%emt 0:01:33]} d6 {[%emt 0:01:21]} 6. Nf3 {[%emt 0:00:55]} e5 {[%emt 0:03:49]} 7. d3 {[%emt 0:00:54]} Nge7 {[%emt 0:00:10]} 8. O-O {[%emt 0:03:20]} O-O {[%emt 0:00:28]} 9. Be3 {[%emt 0:03:42]} exf4 {[%emt 0:06:55]} 10. Bxf4 {[%emt 0:00:09]} Ne5 {[%emt 0:00:10]} 11. Qd2 {[%emt 0:01:32]} Bg4 {[%emt 0:04:33]} 12. Nxe5 {[%emt 0:00:54]} dxe5 {[%emt 0:00:59]} 13. Bh6 {[%emt 0:00:19]} Be6 {[%emt 0:03:38]} 14. Bxg7 {[%emt 0:00:56]} Kxg7 {[%emt 0:00:04]} 15. Qg5 {[%emt 0:00:26]} f6 {[%emt 0:00:12]} 16. Qe3 {[%emt 0:00:52]} Rc8 {[%emt 0:13:33]} 17. b3 {[%emt 0:04:39]} Qd4 {[%emt 0:01:33]} 18. Qxd4 {[%emt 0:00:25]} cxd4 {[%emt 0:00:07]} 19. Nb5 {[%emt 0:00:10]} a6 {[%emt 0:09:14]} 20. Na3 {[%emt 0:01:01]} b5 {[%emt 0:00:06]} 21. Rac1 {[%emt 0:01:03]} Nc6 {[%emt 0:00:32]} 22. Rb1 {[%emt 0:04:22]} Nb4 {[%emt 0:00:28]} 23. Rb2 {[%emt 0:00:01]} Rc6 {[%emt 0:03:01]} 24. Bf3 {[%emt 0:00:33]} Rfc8 {[%emt 0:01:26]} 25. Rf2 {[%emt 0:01:23]} Bh3 {[%emt 0:06:58]} 26. Rd2 {[%emt 0:02:17]} h5 {[%emt 0:01:25]} 27. Kf2 {[%emt 0:02:45]} Kh6 {[%emt 0:00:02]} 28. Bg2 {[%emt 0:00:24]} Be6 {[%emt 0:04:43]} 29. Bf3 {[%emt 0:00:56]} Bg4 {[%emt 0:00:03]} 30. Kg2 {[%emt 0:00:35]} Be6 {[%emt 0:06:51]} 31. Kf2 {[%emt 0:00:26]} g5 {[%emt 0:00:58]} 32. Bd1 {[%emt 0:03:50]} g4 {[%emt 0:05:14]} 33. Nb1 {[%emt 0:00:39]} R6c7 {[%emt 0:00:09]} 34. a4 {[%emt 0:00:23]} Kg5 {[%emt 0:00:31]} 35. Na3 {[%emt 0:02:07]} Bd7 {[%emt 0:01:11]} 36. a5 {[%emt 0:01:57]} h4 {[%emt 0:02:30]} 37. Kg2 {[%emt 0:00:47]} hxg3 {[%emt 0:00:21]} 38. Kxg3 {[%emt 0:00:06]} Rh8 {[%emt 0:00:07]} 39. Kg2 {[%emt 0:01:24]} f5 {[%emt 0:02:14]} 40. exf5 {[%emt 0:00:55]} Bc6+ {[%emt 0:00:02]} 41. Kg1 {[%emt 0:00:20]} g3 {[%emt 0:03:26]} 42. hxg3 {[%emt 0:00:13]} Rh1+ {[%emt 0:00:06]} 43. Kf2 {[%emt 0:00:01]} Rch7 {[%emt 0:00:15]} 0-1

[Event "IV Torneo de Semana Santa"]
[Site "Los Llanos de Aridane"]
[Date "2019.04.16"]
[Round "5.9"]
[White "Salazar De La Cruz, Jose Maria"]
[Black "Otero Campos, Cintia"]
[Result "1-0"]
[ECO "C00"]
[WhiteElo "2099"]
[BlackElo "1451"]
[Annotator "NA RC"]
[PlyCount "37"]
[EventDate "2019.04.13"]
[EventType "swiss"]
[EventCountry "ESP"]
[SourceTitle "playchess.com"]
[Source "ChessBase"]
[SourceQuality "1"]
[TimeControl "5400+30"]

1. e4 {[%emt 0:12:11]} c5 {[%emt 0:00:00]} 2. Nf3 {[%emt 0:00:38]} e6 {[%emt 0:00:03]} 3. g3 {[%emt 0:00:12]} Nc6 {[%emt 0:00:18]} 4. Bg2 {[%emt 0:00:04]} Nf6 {[%emt 0:01:02]} 5. Qe2 {[%emt 0:00:14]} Be7 {[%emt 0:00:30]} 6. O-O {[%emt 0:00:07] C00: French: Unusual White 2nd moves} O-O {[%emt 0:00:10]} 7. Rd1 {[%emt 0:00:13]} (7. c3 d5 8. e5 Nd7 9. d4 a5 10. Rd1 a4 11. h4 b5 12. Ng5 b4 13. a3 bxc3 14. bxc3 {1-0 (47) Kobalia,M (2620)-Morozevich,A (2656) Tula 2019}) 7... a6 $146 {[%emt 0:00:53]} ({Predecessor:} 7... d5 8. e5 Nd7 9. c3 b6 10. d3 Bb7 11. Na3 a6 12. Nc2 Qc7 13. Bf4 Rfc8 {½-½ (43) Szalai,K (2397)-Medvegy,Z (2538) Hungary 2019}) 8. d4 {[%emt 0:00:40]} cxd4 {[%emt 0:00:47]} 9. Nxd4 {[%emt 0:00:07]} Qc7 {[%emt 0:01:27]} 10. Nc3 {[%emt 0:01:09]} d6 {[%emt 0:07:52]} 11. a4 {[%emt 0:00:53]} Rb8 {[%emt 0:06:09]} 12. Be3 {[%emt 0:00:12]} Ne5 {[%emt 0:02:10]} 13. f4 {[%emt 0:01:14]} Nc4 {[%emt 0:00:38]} 14. Bc1 {[%emt 0:00:00]} b6 {[%emt 0:01:40]} 15. e5 {[%emt 0:00:32]} dxe5 {[%emt 0:03:50] [#]} 16. Nc6 $1 {[%emt 0:00:10] Double Attack} Bc5+ {[%emt 0:00:29]} (16... Na5 $16 {keeps fighting.} 17. Nxb8 Qxb8) 17. Kh1 {[%emt 0:00:10]} Rb7 {[%emt 0:03:37]} 18. Qxc4 {[%emt 0:00:33]} exf4 $18 {[%emt 0:03:59]} (18... Ng4 $142) 19. Bxf4 {[%emt 0:00:11] Trapped Piece} 1-0

[Event "IV Torneo de Semana Santa"]
[Site "Los Llanos de Aridane"]
[Date "2019.04.16"]
[Round "6.2"]
[White "Hernandez Leon, Alberto"]
[Black "Brito Garcia, Alfredo"]
[Result "1/2-1/2"]
[ECO "E11"]
[WhiteElo "2280"]
[BlackElo "2311"]
[Annotator "NA RC"]
[PlyCount "24"]
[EventDate "2019.04.13"]
[EventType "swiss"]
[EventCountry "ESP"]
[SourceTitle "playchess.com"]
[Source "ChessBase"]
[SourceQuality "1"]
[TimeControl "5400+30"]

1. d4 {[%emt 0:00:00]} Nf6 {[%emt 0:00:00]} 2. Nf3 {[%emt 0:00:00]} e6 {[%emt 0:00:13]} 3. c4 {[%emt 0:00:14]} Bb4+ {[%emt 0:02:05]} 4. Bd2 {[%emt 0:00:33]} a5 {[%emt 0:01:47]} 5. g3 {[%emt 0:01:20]} d5 {[%emt 0:04:20]} 6. Qc2 {[%emt 0:01:19]} Nc6 {[%emt 0:01:29]} 7. Bg2 {[%emt 0:01:08]} dxc4 {[%emt 0:01:29]} 8. Qxc4 {[%emt 0:00:22]} Qd5 {[%emt 0:01:43]} 9. Qd3 {[%emt 0:02:52]} Qe4 {[%emt 0:01:26]} 10. Qc4 {[%emt 0:01:01]} Qd5 {[%emt 0:00:08]} 11. Qd3 {[%emt 0:00:09]} Qe4 {[%emt 0:00:02]} 12. Qc4 {[%emt 0:00:09]} Qd5 {[%emt 0:00:07]} 1/2-1/2

[Event "IV Torneo de Semana Santa"]
[Site "Los Llanos de Aridane"]
[Date "2019.04.16"]
[Round "6.3"]
[White "Fernandez Gonzalez, Sergio"]
[Black "Hidalgo Santana, Fernando"]
[Result "1-0"]
[ECO "A84"]
[WhiteElo "2089"]
[BlackElo "2116"]
[Annotator "NA"]
[PlyCount "61"]
[EventDate "2019.04.13"]
[EventType "swiss"]
[EventCountry "ESP"]
[SourceTitle "playchess.com"]
[Source "ChessBase"]
[SourceQuality "1"]
[TimeControl "5400+30"]

1. c4 {[%emt 0:00:00]} c6 {[%emt 0:01:15]} 2. Nc3 {[%emt 0:00:08]} d5 {[%emt 0:01:00]} 3. d4 {[%emt 0:00:09]} e6 {[%emt 0:03:47]} 4. Bf4 {[%emt 0:00:17]} f5 {[%emt 0:00:11]} 5. e3 {[%emt 0:00:30]} Nf6 {[%emt 0:00:07]} 6. Nf3 {[%emt 0:00:10]} Be7 {[%emt 0:00:15]} 7. Bd3 {[%emt 0:00:18]} O-O {[%emt 0:00:09]} 8. O-O {[%emt 0:00:07]} h6 {[%emt 0:01:07] A84: Dutch Defence: 2 c4 Miscellaneous} (8... Ne4 9. Ne2 g5 10. Bxb8 Rxb8 11. Ne5 Bf6 12. f3 Nd6 13. c5 Nf7 14. f4 g4 15. b4 Nxe5 16. dxe5 Be7 {1-0 (67) Bosiocic,M (2599)-Dragicevic,D (2340) Skopje 2018}) 9. h3 {[%emt 0:00:08]} Ne4 $146 {[%emt 0:02:50]} ({Predecessor:} 9... Nbd7 10. Bh2 Ne4 11. Ne2 g5 12. Ne5 Qe8 13. f3 Nef6 14. Qc2 Nxe5 15. Bxe5 Nd7 16. g4 Nxe5 17. dxe5 {0-1 (41) Le,H-Truong,T Ha Tinh 2000}) 10. Qb3 {[%emt 0:05:19]} Kh7 {[%emt 0:06:28]} 11. Rae1 {[%emt 0:04:11]} Nd7 {[%emt 0:03:52]} 12. Qc2 {[%emt 0:02:35]} g6 {[%emt 0:01:31]} 13. Ne2 {[%emt 0:05:20]} Ndf6 {[%emt 0:10:13]} 14. Ne5 {[%emt 0:00:54]} Bb4 {[%emt 0:04:28]} 15. Rc1 {[%emt 0:00:49]} Nd7 {[%emt 0:01:18]} 16. cxd5 {[%emt 0:02:40]} exd5 {[%emt 0:02:36]} 17. f3 {[%emt 0:07:08]} Nxe5 {[%emt 0:03:30]} 18. dxe5 {[%emt 0:00:35]} Nc5 {[%emt 0:00:34]} 19. Bg3 {[%emt 0:00:52]} Nxd3 {[%emt 0:02:33]} 20. Qxd3 {[%emt 0:00:08]} a5 {[%emt 0:00:31]} 21. f4 {[%emt 0:03:19]} a4 {[%emt 0:08:21]} 22. Rc2 {[%emt 0:01:20]} Qb6 $14 {[%emt 0:00:24]} 23. Qd4 {[%emt 0:01:20]} Qa5 {[%emt 0:02:16]} 24. Bh4 {[%emt 0:02:13]} Be6 {[%emt 0:00:08]} 25. a3 {[%emt 0:00:28]} c5 {[%emt 0:01:34]} 26. axb4 {[%emt 0:00:53]} cxb4 {[%emt 0:04:21]} 27. Be7 {[%emt 0:03:40]} b3 {[%emt 0:00:07]} 28. Rc5 {[%emt 0:00:19]} b5 {[%emt 0:02:18]} 29. Bxf8 {[%emt 0:00:08]} Rxf8 {[%emt 0:00:07]} 30. Rfc1 {[%emt 0:02:07]} Rf7 {[%emt 0:00:50]} 31. Qc3 {[%emt 0:00:29]} 1-0